bitfinex-derivatives/quotes_BTCF0:USTF0_20251009
["timestamp","ask_amount","ask_price","bid_price","bid_amount"]
[1760031400409,0.40809,120480.0,120470.0,1.55692365]
[1760031400811,0.40809,120480.0,120470.0,1.45256763]
[1760031401707,0.40809,120480.0,120470.0,0.94416866]
[1760031402210,0.4910498,120480.0,120470.0,1.36956103]
[1760031402407,0.4910498,120480.0,120470.0,1.45252763]
[1760031403112,0.4910498,120480.0,120470.0,1.45248763]
[1760031404108,0.4910498,120480.0,120470.0,1.51983647]
[1760031404714,0.4910498,120480.0,120470.0,1.62419249]
[1760031405314,0.40809,120480.0,120470.0,1.51983647]
[1760031405708,0.4910498,120480.0,120470.0,1.51983647]
[1760031407608,0.4910498,120480.0,120470.0,1.51941184]
[1760031407912,0.4910498,120480.0,120470.0,1.45248763]
[1760031408216,0.4910498,120480.0,120470.0,0.69396763]
[1760031408416,0.4910498,120480.0,120470.0,1.55676365]
[1760031408811,0.4910498,120480.0,120470.0,1.45240763]
[1760031409218,0.40809,120480.0,120470.0,0.79832365]
[1760031409415,0.40809,120480.0,120470.0,1.04852468]
[1760031409618,0.40809,120480.0,120470.0,1.80692468]
[1760031410117,0.261,120480.0,120470.0,2.60612949]
[1760031410313,0.02291,120500.0,120490.0,0.0829529]
[1760031410518,0.08291,120500.0,120490.0,2.06335496]
[1760031410819,0.29291,120500.0,120490.0,2.06335496]
[1760031411320,0.271,120500.0,120490.0,2.06335496]
[1760031411514,0.14630555,120500.0,120490.0,1.60292519]
[1760031411715,0.001,120500.0,120490.0,2.36128519]
[1760031412614,0.001,120500.0,120490.0,2.5100781]
[1760031413012,0.001,120500.0,120490.0,1.7517181]
[1760031413212,0.05518,120520.0,120490.0,1.834671]
[1760031413415,0.26,120520.0,120510.0,0.95333201]
[1760031413614,0.26,120520.0,120510.0,1.61963433]
[1760031414015,0.26,120520.0,120510.0,1.28648317]
[1760031414217,0.26,120520.0,120510.0,1.47084142]
[1760031414417,0.26,120520.0,120510.0,1.13769026]
[1760031415015,0.261,120520.0,120510.0,1.89597026]
[1760031415211,0.261,120520.0,120510.0,1.90428522]
[1760031416018,0.261,120520.0,120510.0,1.14600522]
[1760031416218,0.081,120520.0,120510.0,1.14600522]
[1760031416418,0.081,120520.0,120510.0,2.30424522]
[1760031417117,0.081,120520.0,120510.0,2.63735638]
[1760031417324,0.081,120520.0,120510.0,2.30420522]
[1760031417518,0.001,120520.0,120510.0,2.45299813]
[1760031418319,0.001,120520.0,120510.0,2.30420522]
[1760031418919,0.001,120520.0,120510.0,2.63731638]
[1760031419718,0.001,120520.0,120510.0,4.04269406]
[1760031419923,0.001,120520.0,120510.0,4.52463813]
[1760031420115,0.001,120520.0,120510.0,1.79861273]
[1760031420322,0.001,120520.0,120510.0,4.62841273]
[1760031420522,0.001,120520.0,120510.0,4.20344389]
[1760031420727,0.001,120520.0,120510.0,4.05465098]
[1760031421028,0.001,120520.0,120510.0,4.81273098]
[1760031421528,0.001,120520.0,120510.0,4.05457098]
[1760031421831,0.001,120520.0,120510.0,4.81261098]
[1760031422527,0.001,120520.0,120510.0,4.70879638]
[1760031423228,0.001,120520.0,120510.0,4.70875638]
[1760031423728,0.001,120520.0,120510.0,1.87915638]
[1760031423928,0.001,120520.0,120510.0,4.70859638]
[1760031425431,0.001,120520.0,120510.0,1.87915638]
[1760031425632,0.001,120520.0,120510.0,4.70851638]
[1760031425835,0.05693,120520.0,120510.0,3.28425406]
[1760031426131,0.001,120520.0,120510.0,3.97532522]
[1760031427132,0.001,120520.0,120510.0,1.14600522]
[1760031427334,0.05693,120520.0,120510.0,3.97524522]
[1760031427534,0.05693,120520.0,120510.0,4.07905982]
[1760031427735,0.05693,120520.0,120510.0,3.74590866]
[1760031427935,0.05693,120520.0,120510.0,0.91666866]
[1760031428139,0.05693,120520.0,120510.0,3.74590866]
[1760031428140,0.40825,120520.0,120510.0,3.74590866]
[1760031428433,0.40825,120520.0,120510.0,3.97524522]
[1760031428630,0.40825,120520.0,120510.0,1.14600522]
[1760031428834,0.40825,120520.0,120510.0,1.57069406]
[1760031429032,0.31693,120520.0,120510.0,0.81285406]
[1760031429331,0.10693,120520.0,120510.0,1.14600522]
[1760031429536,0.10693,120520.0,120510.0,1.90384522]
[1760031429930,0.001,120520.0,120510.0,1.90384522]
[1760031430143,0.001,120520.0,120510.0,2.63699638]
[1760031430434,0.001,120520.0,120510.0,2.74081098]
[1760031430629,0.001,120520.0,120510.0,2.63699638]
[1760031430834,0.001,120520.0,120510.0,2.74082603]
[1760031431037,0.001,120520.0,120510.0,2.07452371]
[1760031431235,0.001,120520.0,120510.0,1.31668371]
[1760031431431,1e-07,120520.0,120510.0,2.07452371]
[1760031431831,1e-07,120520.0,120510.0,1.31668371]
[1760031432032,1e-07,120520.0,120510.0,2.40763487]
[1760031432536,1e-07,120520.0,120510.0,4.47895487]
[1760031432934,1e-07,120520.0,120510.0,1.64983487]
[1760031433132,1e-07,120520.0,120510.0,4.37508522]
[1760031433732,0.14725,120560.0,120520.0,0.4975845]
[1760031434043,0.46725,120560.0,120550.0,0.44269286]
[1760031434235,0.46725,120560.0,120550.0,1.20045286]
[1760031434438,0.37593,120560.0,120550.0,1.20045286]
[1760031435135,0.37593,120560.0,120550.0,1.56125286]
[1760031435332,0.32,120560.0,120550.0,1.56125286]
[1760031436140,0.32,120560.0,120550.0,0.80349286]
[1760031436443,0.12,120560.0,120550.0,0.80349286]
[1760031436737,0.05593,120580.0,120550.0,1.64412446]
[1760031436945,0.37593,120580.0,120570.0,0.77684896]
[1760031437246,0.37593,120580.0,120570.0,1.53456896]
[1760031437541,0.46725,120580.0,120570.0,1.53452896]
[1760031437735,0.46725,120580.0,120570.0,0.77684896]
[1760031437936,0.37593,120580.0,120570.0,1.53452896]
[1760031438241,0.46825,120580.0,120570.0,1.53452896]
[1760031438833,0.46725,120580.0,120570.0,1.53452896]
[1760031439034,0.46825,120580.0,120570.0,1.53452896]
[1760031439242,0.46825,120580.0,120570.0,1.54273228]
[1760031439737,0.46825,120580.0,120570.0,1.54265228]
[1760031440338,0.46825,120580.0,120570.0,0.45190112]
[1760031440639,0.46825,120580.0,120570.0,1.20950112]
[1760031441540,0.46825,120580.0,120570.0,1.54265228]
[1760031441741,0.46825,120580.0,120570.0,1.54261228]
[1760031442239,0.46825,120580.0,120570.0,1.61034951]
[1760031442445,0.46825,120580.0,120570.0,1.27719835]
[1760031442744,0.46825,120580.0,120570.0,1.61034951]
[1760031443243,0.46825,120580.0,120570.0,1.60214619]
[1760031443445,0.86825,120580.0,120570.0,1.26899503]
[1760031444253,0.86825,120580.0,120570.0,1.60210619]
[1760031444546,0.86825,120580.0,120570.0,1.61059987]
[1760031447545,0.86825,120580.0,120570.0,3.11059987]
[1760031448952,0.16562625,120580.0,120570.0,3.84375103]
[1760031449142,5e-08,120580.0,120570.0,3.51043987]
[1760031451239,5e-08,120580.0,120570.0,2.75307987]
[1760031451438,0.00886398,120600.0,120590.0,0.0959541]
[1760031451646,8e-08,120600.0,120590.0,1.90802526]
[1760031452339,8e-08,120600.0,120590.0,2.30802526]
[1760031452542,0.00100008,120600.0,120590.0,2.30802526]
[1760031452840,0.001,120600.0,120590.0,1.88385642]
[1760031453045,0.001,120600.0,120590.0,2.64113642]
[1760031453251,0.001,120600.0,120590.0,4.0452341]
[1760031453651,0.001,120600.0,120590.0,1.2175541]
[1760031453850,0.001,120600.0,120590.0,3.6451941]
[1760031454048,0.05925,120630.0,120600.0,0.0828728]
[1760031454246,0.05925,120650.0,120620.0,0.4436569]
[1760031454551,0.70005,120650.0,120640.0,0.41600086]
[1760031454852,1.03320116,120650.0,120640.0,2.9105297]
[1760031455152,0.79359,120650.0,120640.0,2.9105297]
[1760031455750,0.79459,120650.0,120640.0,2.9105297]
[1760031456449,0.70105,120650.0,120640.0,2.9105297]
[1760031456650,0.70105,120650.0,120640.0,0.41600086]
[1760031456850,0.70105,120650.0,120640.0,3.24372086]
[1760031457046,0.70105,120650.0,120640.0,2.1528897]
[1760031457243,1.19459,120650.0,120640.0,0.0828497]
[1760031457447,1.52774116,120650.0,120640.0,0.8404497]
[1760031457651,1.19459,120650.0,120640.0,0.0828497]
[1760031457852,1.19459,120650.0,120640.0,2.9194497]
[1760031458255,1.19459,120650.0,120640.0,2.9194097]
[1760031458448,0.79459,120650.0,120640.0,0.0913697]
[1760031458754,0.70105,120650.0,120640.0,0.42452086]
[1760031459053,0.79459,120650.0,120640.0,2.9194097]
[1760031459552,0.70105,120650.0,120640.0,2.9194097]
[1760031459750,0.79459,120650.0,120640.0,2.1612097]
[1760031459949,0.79459,120650.0,120640.0,2.9192097]
[1760031460254,0.79459,120650.0,120640.0,0.0913697]
[1760031460454,1.19459,120650.0,120640.0,2.9191697]
[1760031460650,0.05925,120640.0,120630.0,2.1526534]
[1760031460855,0.90320116,120640.0,120630.0,2.9105734]
[1760031461154,1.06359,120640.0,120630.0,2.9106934]
[1760031461656,1.06359,120640.0,120630.0,2.1526134]
[1760031461850,1.06459,120640.0,120630.0,2.91909619]
[1760031462157,1.06459,120640.0,120630.0,0.09121619]
[1760031462455,0.66459,120640.0,120630.0,2.91893619]
[1760031462945,0.66459,120640.0,120630.0,0.09121619]
[1760031463151,1.48059086,120640.0,120630.0,2.06964]
[1760031463350,1.48059086,120640.0,120630.0,2.9104166]
[1760031463555,1.39774116,120640.0,120630.0,2.9104166]
[1760031463755,1.39774116,120640.0,120630.0,0.8407366]
[1760031464452,1.06459,120640.0,120630.0,0.8407366]
[1760031465258,1.39774116,120640.0,120630.0,0.8407766]
[1760031466257,1.39774116,120640.0,120630.0,0.0828566]
[1760031466459,1.06459,120640.0,120630.0,0.8405366]
[1760031466664,1.39774116,120640.0,120630.0,0.8405366]
[1760031467660,1.39774116,120640.0,120630.0,0.0828566]
[1760031468060,1.39774116,120640.0,120630.0,0.8403766]
[1760031468262,1.48059086,120640.0,120630.0,0.0828566]
[1760031468461,1.39774116,120640.0,120630.0,0.8403766]
[1760031469163,1.11667116,120630.0,120620.0,0.15040046]
[1760031469462,1.11667116,120630.0,120620.0,0.79524046]
[1760031470360,1.59952776,120630.0,120620.0,0.06753696]
[1760031470566,1.59952776,120630.0,120620.0,0.8403035]
[1760031470755,1.59952776,120630.0,120620.0,0.42450351]
[1760031470756,0.32654,120630.0,120620.0,0.42450351]
[1760031470960,0.42005,120640.0,120630.0,0.0828566]
[1760031471159,0.63005,120640.0,120630.0,0.41600776]
[1760031471464,0.72623,120640.0,120630.0,0.0828566]
[1760031471661,0.72623,120640.0,120630.0,0.33219337]
[1760031471967,0.63005,120640.0,120630.0,0.33219337]
[1760031472370,0.63005,120640.0,120630.0,1.09031337]
[1760031473267,0.63105,120640.0,120630.0,1.09031337]
[1760031473568,0.63105,120640.0,120630.0,0.8409766]
[1760031473762,0.63105,120640.0,120630.0,0.0828566]
[1760031473963,0.72723,120640.0,120630.0,0.0828566]
[1760031474163,0.72723,120640.0,120630.0,2.9102966]
[1760031474470,0.63105,120640.0,120630.0,2.9102966]
[1760031475064,0.63105,120640.0,120630.0,2.9102166]
[1760031475770,0.72723,120640.0,120630.0,0.8406966]
[1760031476468,0.72623,120640.0,120630.0,0.8406966]
[1760031477768,0.15272,120600.0,120590.0,0.10382965]
[1760031477968,1.68557434,120600.0,120590.0,0.10382965]
[1760031478274,0.15272,120580.0,120570.0,1.5913748]
[1760031478589,0.51352,120580.0,120570.0,2.2413748]
[1760031478761,1.26390857,120580.0,120570.0,2.3067781]
[1760031478964,0.87432,120580.0,120570.0,2.3067781]
[1760031479163,1.227211,120580.0,120570.0,1.5738836]
[1760031479367,1.61679957,120580.0,120570.0,0.8274833]
[1760031479572,1.53390857,120580.0,120570.0,0.9103811]
[1760031479877,1.14432,120580.0,120570.0,0.9104211]
[1760031480070,0.98432,120580.0,120570.0,0.9103811]
[1760031480880,0.98432,120580.0,120570.0,0.9103411]
[1760031481172,0.87432,120580.0,120570.0,0.9103411]
[1760031481472,0.05654,120590.0,120580.0,0.082891]
[1760031481473,0.41734,120590.0,120580.0,0.082891]
[1760031481669,0.6308,120590.0,120580.0,1.23455957]
[1760031481870,0.6308,120590.0,120580.0,0.844971]
[1760031482573,0.68826,120590.0,120580.0,0.844971]
[1760031484471,0.68826,120590.0,120580.0,0.844811]
[1760031484771,0.78688,120590.0,120580.0,0.844811]
[1760031484978,1.17646857,120590.0,120580.0,2.1526909]
[1760031485177,0.15608,120580.0,120570.0,2.4804983]
[1760031485376,0.51688,120580.0,120570.0,1.9106983]
[1760031485671,1.16646857,120580.0,120570.0,2.6724983]
[1760031485876,1.24935947,120580.0,120570.0,1.8278033]
[1760031486174,1.24935947,120580.0,120570.0,2.3446978]
[1760031486475,1.16646857,120580.0,120570.0,2.3446578]
[1760031487765,1.24935947,120580.0,120570.0,2.3446578]
[1760031487974,1.24935947,120580.0,120570.0,2.3445378]
[1760031488371,1.16646857,120580.0,120570.0,2.3445378]
[1760031488576,1.16646857,120580.0,120570.0,1.5828978]
[1760031488768,0.77688,120580.0,120570.0,1.5828978]
[1760031488972,0.77688,120580.0,120570.0,2.3443778]
[1760031489373,0.60688,120580.0,120570.0,0.8443778]
[1760031489879,0.60688,120580.0,120570.0,2.3443778]
[1760031490479,0.76688,120580.0,120570.0,2.3443778]
[1760031491281,0.76688,120580.0,120570.0,1.5828978]
[1760031491483,0.76688,120580.0,120570.0,2.3441778]
[1760031491983,0.76688,120580.0,120570.0,2.3440978]
[1760031493482,0.76688,120580.0,120570.0,1.5828978]
[1760031493686,0.76688,120580.0,120570.0,2.3439378]
[1760031493978,0.66826,120580.0,120570.0,1.8452978]
[1760031494192,0.41826,120580.0,120570.0,3.39584637]
[1760031494481,0.3608,120580.0,120570.0,3.39584637]
[1760031494678,0.41826,120580.0,120570.0,3.39584637]
[1760031494981,0.41826,120580.0,120570.0,3.0062578]
[1760031495477,0.41826,120580.0,120570.0,1.5828978]
[1760031495678,0.41826,120580.0,120570.0,4.4139778]
[1760031495873,0.71826,120580.0,120570.0,1.5828978]
[1760031496075,0.71826,120580.0,120570.0,2.3436978]
[1760031496276,0.43826,120580.0,120570.0,2.73344637]
[1760031496986,0.43826,120580.0,120570.0,2.3438578]
[1760031497382,0.41826,120580.0,120570.0,2.3438978]
[1760031497690,0.3608,120580.0,120570.0,3.13344637]
[1760031497887,0.3608,120580.0,120570.0,3.23727602]
[1760031498586,0.41826,120590.0,120580.0,0.082891]
[1760031498787,0.56826,120590.0,120580.0,0.082891]
[1760031498988,0.5108,120590.0,120580.0,1.63331957]
[1760031499188,0.5108,120590.0,120580.0,1.243731]
[1760031499382,0.5108,120590.0,120580.0,0.482891]
[1760031499584,0.5108,120590.0,120580.0,1.63331957]
[1760031500490,0.5108,120590.0,120580.0,0.87247957]
[1760031500692,0.5108,120590.0,120580.0,1.63331957]
[1760031502696,0.1074193,120590.0,120580.0,1.23327957]
[1760031502892,0.41734,120610.0,120600.0,0.0828772]
[1760031503094,0.71734,120610.0,120600.0,0.8437572]
[1760031503502,0.80979,120610.0,120600.0,0.0828772]
[1760031503989,0.80979,120610.0,120600.0,0.8436772]
[1760031504591,0.71734,120610.0,120600.0,0.8436772]
[1760031504989,0.71734,120610.0,120600.0,0.0828772]
[1760031505496,0.71734,120610.0,120600.0,0.94722999]
[1760031505795,0.80979,120610.0,120600.0,0.8433972]
[1760031505997,0.71734,120610.0,120600.0,0.8433972]
[1760031506307,0.71734,120610.0,120600.0,0.18662999]
[1760031506596,0.6608,120610.0,120600.0,1.33669856]
[1760031507097,0.6608,120610.0,120600.0,1.23294577]
[1760031507392,0.6608,120610.0,120600.0,0.47246577]
[1760031507593,0.6608,120610.0,120600.0,1.29815305]
[1760031510793,0.6608,120610.0,120600.0,0.90856448]
[1760031510995,0.6608,120610.0,120600.0,0.53779305]
[1760031511198,0.6608,120610.0,120600.0,1.29775305]
[1760031511391,0.6608,120610.0,120600.0,0.14820448]
[1760031511592,0.6608,120610.0,120600.0,2.97804448]
[1760031511788,0.3,120610.0,120600.0,2.97804448]
[1760031512189,0.3,120610.0,120600.0,2.21816448]
[1760031512498,0.3,120610.0,120600.0,2.97792448]
[1760031513398,0.3,120610.0,120600.0,2.96855305]
[1760031513591,0.41826,120630.0,120600.0,3.07256948]
[1760031513802,0.68826,120630.0,120620.0,0.0828635]
[1760031513997,0.68826,120630.0,120620.0,0.18687993]
[1760031514602,0.68826,120630.0,120620.0,0.95467135]
[1760031514803,0.78718,120630.0,120620.0,3.02447135]
[1760031515302,0.78718,120630.0,120620.0,2.92045492]
[1760031516198,0.78718,120630.0,120620.0,2.92037492]
[1760031517997,0.78718,120630.0,120620.0,2.92005492]
[1760031518396,0.68826,120630.0,120620.0,2.92005492]
[1760031518802,0.68826,120630.0,120620.0,2.91985492]
[1760031519200,0.68826,120630.0,120620.0,2.16081492]
[1760031519501,0.68826,120630.0,120620.0,2.91985492]
[1760031519701,0.68826,120630.0,120620.0,2.16081492]
[1760031520001,0.68826,120630.0,120620.0,2.91973492]
[1760031520405,0.68826,120630.0,120620.0,2.91969492]
[1760031520604,0.68826,120630.0,120620.0,2.91965492]
[1760031522303,0.68826,120630.0,120620.0,2.91945492]
[1760031523510,0.27,120630.0,120620.0,2.65947924]
[1760031523807,0.27,120630.0,120620.0,3.41799924]
[1760031524510,0.3608,120640.0,120630.0,0.0828566]
[1760031524706,0.4182,120650.0,120640.0,0.0828497]
[1760031524904,0.4182,120650.0,120640.0,1.33995402]
[1760031524905,0.6882,120650.0,120640.0,1.33995402]
[1760031525100,0.6882,120650.0,120640.0,1.09062186]
[1760031525404,0.6882,120650.0,120640.0,0.8412897]
[1760031525604,0.78712,120650.0,120640.0,0.8412897]
[1760031526906,0.78712,120650.0,120640.0,0.90815929]
[1760031527210,0.78712,120650.0,120640.0,2.97747929]
[1760031527815,0.78712,120650.0,120640.0,2.97735929]
[1760031528816,0.78712,120650.0,120640.0,2.97719929]
[1760031529811,0.78712,120650.0,120640.0,2.21919929]
[1760031530007,0.78712,120650.0,120640.0,2.97707929]
[1760031530407,0.78712,120650.0,120640.0,0.14971929]
[1760031530608,0.78712,120650.0,120640.0,2.97695929]
[1760031530808,0.78712,120650.0,120640.0,0.14971929]
[1760031531008,0.78712,120650.0,120640.0,2.97695929]
[1760031531320,0.78712,120650.0,120640.0,0.14971929]
[1760031531509,1.17664451,120650.0,120640.0,2.21915929]
[1760031531709,1.17664451,120650.0,120640.0,2.97687929]
[1760031531913,1.17664451,120650.0,120640.0,2.97683929]
[1760031532113,1.17664451,120650.0,120640.0,2.97679929]
[1760031532521,1.17664451,120650.0,120640.0,2.21911929]
[1760031532814,1.17664451,120650.0,120640.0,0.14971929]
[1760031533015,1.17664451,120650.0,120640.0,2.97667929]
[1760031533217,1.17664451,120650.0,120640.0,0.14971929]
[1760031533412,0.78712,120650.0,120640.0,2.97667929]
[1760031534007,0.78712,120650.0,120640.0,0.06686959]
[1760031534008,1.5795758,120650.0,120640.0,0.06686959]
[1760031534215,1.5795758,120650.0,120640.0,0.0828497]
[1760031534415,1.5795758,120650.0,120640.0,0.75764]
[1760031534715,0.05853,120640.0,120630.0,2.25581881]
[1760031534918,0.81647,120640.0,120630.0,3.01341881]
[1760031535519,0.81647,120640.0,120630.0,0.18645881]
[1760031536013,0.81647,120640.0,120630.0,2.17296821]
[1760031536014,1.6089326,120640.0,120630.0,2.17296821]
[1760031536215,1.6089326,120640.0,120630.0,0.86192821]
[1760031536618,1.6089326,120640.0,120630.0,0.75832]
[1760031536915,0.0828635,120620.0,120610.0,0.18647381]
[1760031537121,1.9697464,120620.0,120610.0,0.10360821]
[1760031537614,1.9697464,120620.0,120610.0,0.86188821]
[1760031537816,1.9697464,120620.0,120610.0,0.75828]
[1760031538621,0.2385472,120600.0,120590.0,0.10360821]
[1760031538821,1.5597601,120600.0,120590.0,0.94477231]
[1760031539023,1.5597601,120600.0,120590.0,0.8411641]
[1760031539719,1.5597601,120600.0,120590.0,0.8412041]
[1760031540216,1.5597601,120600.0,120590.0,0.0828841]
[1760031540412,0.2324641,120590.0,120580.0,0.0828859]
[1760031540619,1.192877,120590.0,120580.0,0.841091]
[1760031541115,1.592877,120590.0,120580.0,0.7582]
[1760031541316,0.142501,120580.0,120570.0,2.13421966]
[1760031541516,1.0200229,120580.0,120570.0,2.97547426]
[1760031541924,1.0200229,120580.0,120570.0,2.98369445]
[1760031542422,1.0200229,120580.0,120570.0,2.21711426]
[1760031542617,0.71041,120580.0,120570.0,2.97547426]
[1760031542822,0.71041,120580.0,120570.0,2.98368112]
[1760031543216,0.71041,120580.0,120570.0,2.97547426]
[1760031544218,0.793301,120580.0,120570.0,2.97547426]
[1760031544413,0.793301,120580.0,120570.0,2.21711426]
[1760031544723,0.793301,120580.0,120570.0,2.97535426]
[1760031544928,1.1029139,120580.0,120570.0,2.97535426]
[1760031545525,1.0200229,120580.0,120570.0,2.97535426]
[1760031546314,0.71041,120580.0,120570.0,2.97535426]
[1760031546519,1.0200229,120580.0,120570.0,2.97519426]
[1760031546720,0.71041,120580.0,120570.0,2.21711426]
[1760031546922,0.71041,120580.0,120570.0,2.97519426]
[1760031547625,0.71041,120580.0,120570.0,2.89229966]
[1760031547626,0.793301,120580.0,120570.0,2.89229966]
[1760031547828,1.1029139,120580.0,120570.0,2.89229966]
[1760031548019,1.1029139,120580.0,120570.0,2.97519746]
[1760031548220,1.1029139,120580.0,120570.0,2.21711746]
[1760031548526,1.1029139,120580.0,120570.0,2.97511746]
[1760031549230,1.0200229,120580.0,120570.0,2.97511746]
[1760031550023,0.71041,120580.0,120570.0,2.97491746]
[1760031550228,0.54041,120580.0,120570.0,2.97491746]
[1760031550622,0.54041,120580.0,120570.0,2.21711746]
[1760031550822,0.54041,120580.0,120570.0,2.97511746]
[1760031551027,0.54041,120580.0,120570.0,3.68473036]
[1760031551424,0.42041,120580.0,120570.0,3.37511746]
[1760031551922,0.42041,120580.0,120570.0,3.37527746]
[1760031552322,0.3608,120580.0,120570.0,3.37527746]
[1760031552627,0.35909099,120580.0,120570.0,3.78849857]
[1760031552928,0.42041,120590.0,120580.0,0.082891]
[1760031553128,0.59041,120590.0,120580.0,0.082891]
[1760031553528,0.59041,120590.0,120580.0,0.840931]
[1760031554723,0.59041,120590.0,120580.0,0.840851]
[1760031556127,0.68038,120590.0,120580.0,0.082891]
[1760031556429,0.59041,120590.0,120580.0,2.910971]
[1760031557730,0.59041,120590.0,120580.0,2.153091]
[1760031557924,0.59041,120590.0,120580.0,2.910851]
[1760031559128,0.59041,120590.0,120580.0,2.153091]
[1760031559430,0.59041,120590.0,120580.0,2.910851]
[1760031559618,0.68038,120590.0,120580.0,0.082891]
[1760031559820,0.68038,120590.0,120580.0,2.910811]
[1760031562730,0.59041,120590.0,120580.0,2.910811]
[1760031563623,0.59041,120590.0,120580.0,2.25665921]
[1760031563827,0.17,120590.0,120580.0,2.96627211]
[1760031564029,0.41933,120610.0,120600.0,0.0828772]
[1760031564219,0.73933,120610.0,120600.0,0.8406372]
[1760031565133,0.73933,120610.0,120600.0,0.94424541]
[1760031565431,0.32,120610.0,120600.0,0.89609831]
[1760031565621,0.32,120610.0,120600.0,1.5502501]
[1760031566029,0.6808,120610.0,120600.0,1.2406372]
[1760031566532,0.32,120610.0,120600.0,1.3443948]
[1760031566831,0.32,120610.0,120600.0,0.5866348]
[1760031567033,0.32,120610.0,120600.0,1.3443948]
[1760031567227,0.32,120610.0,120600.0,1.6539677]
[1760031567426,0.32,120610.0,120600.0,1.5502101]
[1760031567732,0.6808,120610.0,120600.0,1.2405972]
[1760031568631,0.32,120610.0,120600.0,0.5866348]
[1760031568826,0.42041,120620.0,120610.0,0.0828703]
[1760031569033,0.69041,120620.0,120610.0,0.0828703]
[1760031569233,0.78038,120620.0,120610.0,2.9106303]
[1760031569434,0.78038,120620.0,120610.0,3.0143879]
[1760031570134,0.78038,120620.0,120610.0,3.02286305]
[1760031570535,0.78038,120620.0,120610.0,0.19510305]
[1760031570935,0.78038,120620.0,120610.0,3.02282305]
[1760031571237,0.78038,120620.0,120610.0,3.02278305]
[1760031571534,0.78038,120620.0,120610.0,2.16134545]
[1760031571736,0.78038,120620.0,120610.0,0.15774781]
[1760031572036,0.78038,120620.0,120610.0,2.98542781]
[1760031573127,0.78038,120620.0,120610.0,2.22774781]
[1760031573332,0.78038,120620.0,120610.0,2.98542781]
[1760031574935,0.69041,120620.0,120610.0,2.98538781]
[1760031576636,0.78833,120620.0,120610.0,2.98526781]
[1760031576836,0.78833,120620.0,120610.0,2.22762781]
[1760031577137,0.69041,120620.0,120610.0,2.98526781]
[1760031580229,0.78833,120620.0,120610.0,0.15774781]
[1760031580433,0.78833,120620.0,120610.0,0.06640236]
[1760031580434,1.5808064,120620.0,120610.0,0.06640236]
[1760031580629,0.1408103,120610.0,120600.0,2.1527172]
[1760031580829,0.1408103,120610.0,120600.0,2.9103172]
[1760031580830,0.7283529,120610.0,120600.0,2.9103172]
[1760031581032,1.1891432,120610.0,120600.0,0.0828772]
[1760031581232,1.1062729,120610.0,120600.0,0.7111172]
[1760031581435,0.79666,120610.0,120600.0,0.7111172]
[1760031582037,0.8795303,120610.0,120600.0,0.7111172]
[1760031582236,0.15586,120600.0,120590.0,2.1526814]
[1760031582537,0.78666,120600.0,120590.0,3.01417462]
[1760031582934,0.78666,120600.0,120590.0,2.9102814]
[1760031584638,0.78666,120600.0,120590.0,3.02265975]
[1760031588846,1.11934668,120600.0,120590.0,3.02265975]
[1760031589342,1.11934668,120600.0,120590.0,3.02277975]
[1760031589534,1.20222388,120600.0,120590.0,0.19525975]
[1760031589735,1.20222388,120600.0,120590.0,2.26517975]
[1760031590038,1.20222388,120600.0,120590.0,3.02277975]
[1760031590239,1.20222388,120600.0,120590.0,0.94437462]
[1760031590835,1.20222388,120600.0,120590.0,0.10389322]
[1760031591030,1.20222388,120600.0,120580.0,0.18678212]
[1760031591242,0.8695372,120600.0,120590.0,0.7576]
[1760031591530,0.8695372,120600.0,120590.0,0.94441354]
[1760031591531,1.2303372,120600.0,120590.0,0.94441354]
[1760031592140,1.2303372,120600.0,120590.0,0.18681354]
[1760031592337,1.56302388,120600.0,120590.0,0.92245354]
[1760031592731,1.56302388,120600.0,120590.0,0.83956944]
[1760031593037,0.082891,120580.0,120570.0,0.14771506]
[1760031593236,1.59091768,120580.0,120570.0,3.12406797]
[1760031593434,1.50802668,120580.0,120570.0,3.12406797]
[1760031593641,1.17534,120580.0,120570.0,3.12406797]
[1760031593936,1.50802668,120580.0,120570.0,3.12406797]
[1760031594145,1.17534,120580.0,120570.0,2.97527506]
[1760031594335,1.17534,120580.0,120570.0,2.97627506]
[1760031594638,1.17534,120580.0,120570.0,2.97727506]
[1760031594841,1.17534,120580.0,120570.0,2.98577091]
[1760031595435,1.42497218,120580.0,120570.0,2.98577091]
[1760031595838,1.42497218,120580.0,120570.0,2.22817091]
[1760031596145,1.42497218,120580.0,120570.0,2.98577091]
[1760031596845,1.67460436,120580.0,120570.0,2.98577091]
[1760031597439,1.17534,120580.0,120570.0,2.98577091]
[1760031597638,1.67460436,120580.0,120570.0,2.98577091]
[1760031598943,1.67460436,120580.0,120570.0,2.22817091]
[1760031599142,1.67460436,120580.0,120570.0,2.98577091]
[1760031600347,1.67460436,120580.0,120570.0,2.98581091]
[1760031601046,1.67460436,120580.0,120570.0,3.08959021]
[1760031601547,1.67460436,120580.0,120570.0,2.33195021]
[1760031601747,1.67460436,120580.0,120570.0,3.08959021]
[1760031602246,1.42497218,120580.0,120570.0,3.08959021]
[1760031602447,1.42497218,120580.0,120570.0,2.58158239]
[1760031602645,1.42497218,120580.0,120570.0,3.33922239]
[1760031603443,1.42497218,120580.0,120570.0,3.23544309]
[1760031604249,1.42497218,120580.0,120570.0,2.47780309]
[1760031604551,0.1374045,120590.0,120580.0,0.0828896]
[1760031604552,0.3608,120590.0,120580.0,0.0828896]
[1760031604786,0.3708,120590.0,120580.0,1.70595303]
[1760031604948,0.3708,120590.0,120580.0,1.84355303]
[1760031605151,0.01,120590.0,120580.0,1.73979396]
[1760031605445,0.01,120590.0,120580.0,0.98215396]
[1760031605650,0.14251,120580.0,120570.0,0.07531551]
[1760031605840,0.75294218,120580.0,120570.0,2.47812549]
[1760031606148,0.75294218,120580.0,120570.0,2.98613331]
[1760031606350,0.75294218,120580.0,120570.0,3.38306053]
[1760031606748,0.75294218,120580.0,120570.0,2.37478835]
[1760031606948,0.75294218,120580.0,120570.0,3.13338835]
[1760031607147,1.05294218,120580.0,120570.0,3.13338835]
[1760031607654,0.80331,120580.0,120570.0,3.13338835]
[1760031607846,0.4152,120580.0,120570.0,3.38402053]
[1760031608151,0.4152,120580.0,120570.0,3.53438835]
[1760031608349,0.4152,120580.0,120570.0,3.78402053]
[1760031608751,0.3608,120580.0,120570.0,3.63572549]
[1760031609750,0.4152,120580.0,120570.0,0.40784549]